bitfinex/quotes_ETHUSD_20250806
["timestamp","ask_amount","ask_price","bid_price","bid_amount"]
[1754484884434,0.001,3590.8,3590.7,2.78497228]
[1754484884587,4.28,3590.8,3590.7,2.78497228]
[1754484884787,4.28,3590.8,3590.7,3.40437228]
[1754484885192,0.25647126,3590.8,3590.7,3.40437228]
[1754484885452,4.28,3590.8,3590.7,3.40437228]
[1754484886690,4.28,3590.8,3590.7,3.83437228]
[1754484887097,4.28,3590.8,3590.7,3.40437228]
[1754484887302,4.28,3590.8,3590.7,2.92417228]
[1754484887504,4.28,3590.8,3590.7,3.40437228]
[1754484888031,4.279,3590.8,3590.7,3.83437228]
[1754484889127,0.001,3590.8,3590.7,3.40437228]
[1754484889331,0.001,3591.0,3590.9,3.33481717]
[1754484889756,0.001,3591.0,3590.9,3.47401717]
[1754484889955,0.001,3591.0,3590.9,4.38421717]
[1754484892031,0.001,3591.0,3590.9,4.24501717]
[1754484892233,0.001,3591.0,3590.9,5.7871897]
[1754484892881,0.001,3591.0,3590.9,8.7871897]
[1754484895044,0.001,3591.0,3590.9,8.7860897]
[1754484898256,0.001,3591.0,3590.9,2.78481717]
[1754484898461,0.4597,3591.0,3590.9,2.78481717]
[1754484898755,0.4597,3591.0,3590.8,2.78486119]
[1754484898955,0.4597,3591.0,3590.6,2.78703204]
[1754484898956,0.4597,3591.0,3590.9,2.78481717]
[1754484899340,0.4597,3591.0,3590.8,2.78486841]
[1754484899543,0.4597,3591.0,3590.9,2.78481717]
[1754484900184,0.001,3591.0,3590.9,2.78481717]
[1754484901482,0.001,3591.0,3590.9,3.26571717]
[1754484902091,0.001,3591.0,3590.9,3.81571717]
[1754484903159,0.001,3591.0,3590.9,3.33481717]
[1754484904370,0.001,3591.0,3590.9,3.81571717]
[1754484906996,0.001,3591.0,3590.9,4.24461717]
[1754484907194,0.001,3591.0,3590.9,3.81571717]
[1754484907931,0.001,3591.0,3590.9,4.24461717]
[1754484908090,0.001,3591.0,3590.9,3.81571717]
[1754484908290,0.001,3591.0,3590.9,3.95491717]
[1754484911409,0.001,3591.0,3590.9,4.38381717]
[1754484911651,0.001,3591.0,3590.9,5.52849384]
[1754484914309,0.001,3591.0,3590.9,4.38381717]
[1754484915284,0.001,3591.0,3590.9,3.95491717]
[1754484915490,0.001,3591.0,3590.9,4.38381717]
[1754484917430,0.001,3591.0,3590.9,3.47401717]
[1754484917788,0.001,3591.0,3590.9,3.95491717]
[1754484918128,0.001,3591.0,3590.9,5.09959384]
[1754484918301,0.001,3591.0,3590.9,5.52849384]
[1754484918482,0.001,3591.0,3590.9,5.09959384]
[1754484918687,1e-08,3591.0,3590.9,17.08449384]
[1754484918887,0.001,3591.4,3591.3,6.334507]
[1754484919138,0.001,3591.4,3591.3,11.80089089]
[1754484919384,0.001,3591.4,3591.3,18.27567952]
[1754484919551,0.001,3591.4,3591.3,19.18547952]
[1754484919890,0.9548,3591.4,3591.3,0.1392]
[1754484920182,1.21150642,3591.4,3591.3,2.923707]
[1754484920894,1.21150642,3591.4,3590.9,0.1392]
[1754484920895,4.13517983,3591.4,3590.9,0.1392]
[1754484921047,2.78463453,3591.2,3590.9,0.1392]
[1754484921253,8.00315484,3591.1,3590.9,0.1392]
[1754484921554,0.25670642,3591.0,3590.9,0.1392]
[1754484921752,1.14840642,3591.0,3590.9,0.1392]
[1754484922407,1.14840642,3591.0,3590.6,0.1412]
[1754484922702,1.14840642,3590.9,3590.6,0.002]
[1754484922856,3.04164797,3590.8,3590.6,0.002]
[1754484923073,0.25670642,3590.7,3590.6,0.002]
[1754484923275,1.14840642,3590.7,3590.6,0.002]
[1754484923973,0.25670642,3590.7,3590.6,0.002]
[1754484924214,1.14840642,3590.7,3590.6,0.002]
[1754484924775,0.25670642,3590.7,3590.6,0.002]
[1754484925626,1.14840642,3590.7,3590.6,0.002]
[1754484926176,0.69442502,3590.7,3590.6,0.002]
[1754484926375,4.53252502,3590.7,3590.6,0.002]
[1754484926796,0.25652502,3590.7,3590.6,3.40914985]
[1754484927140,0.25652502,3590.7,3590.6,5.1826575]
[1754484927346,0.25652502,3590.7,3590.6,4.7094575]
[1754484927498,0.25652502,3590.7,3590.6,5.1826575]
[1754484927905,4.276,3590.8,3590.7,2.78497228]
[1754484928341,4.276,3590.8,3590.7,3.26787228]
[1754484928651,5.42423929,3590.8,3590.6,0.1412]
[1754484928815,0.8917,3590.7,3590.6,0.1412]
[1754484929538,1.14824091,3590.7,3590.6,0.1412]
[1754484929935,1.690665,3590.7,3590.6,0.1412]
[1754484930306,1.14824091,3590.7,3590.6,0.1412]
[1754484930501,1.14824091,3590.7,3590.6,0.002]
[1754484930905,3.93321319,3590.7,3590.6,0.002]
[1754484931133,4.07241319,3590.7,3590.6,0.002]
[1754484931300,7.07241319,3590.7,3590.6,0.002]
[1754484931502,9.50695264,3590.7,3590.6,0.002]
[1754484932548,5.78528256,3590.3,3590.2,0.002]
[1754484932753,2.78559291,3589.9,3589.8,1e-08]
[1754484933053,2.78559291,3589.9,3589.1,0.04]
[1754484933054,5.78605856,3589.3,3589.1,0.04]
[1754484933340,10.45779947,3589.3,3589.1,0.04]
[1754484933732,11.34949947,3589.3,3589.1,0.04]
[1754484935056,11.34855586,3589.3,3589.1,0.04]
[1754484936319,11.34955586,3589.3,3589.1,0.04]
[1754484936645,12.76310815,3589.3,3589.1,0.04]
[1754484941053,12.76207036,3589.3,3589.1,0.04]
[1754484941642,8.03127036,3589.3,3589.1,0.04]
[1754484941832,12.76307036,3589.3,3589.1,0.04]
[1754484942213,8.48507036,3589.3,3589.1,0.04]
[1754484942438,12.76307036,3589.3,3589.1,0.04]
[1754484942720,12.30927036,3589.3,3589.1,0.04]
[1754484942917,11.87137036,3589.3,3589.1,0.04]
[1754484943554,12.76307036,3589.3,3589.1,0.04]
[1754484944031,8.48507036,3589.3,3589.1,0.04]
[1754484944216,12.76307036,3589.3,3589.1,0.04]
[1754484948946,13.15072109,3589.3,3589.1,0.04]
[1754484951153,13.15072109,3589.3,3589.1,0.042]
[1754484955540,13.15137056,3589.3,3589.1,0.042]
[1754484957253,12.25967056,3589.3,3589.1,0.042]
[1754484957452,2.78660201,3588.6,3588.5,0.2495]
[1754484957638,36.04181099,3588.6,3588.5,0.2495]
[1754484957968,48.10615035,3588.6,3588.5,0.2495]
[1754484958134,47.71849962,3588.6,3588.5,0.2495]
[1754484958749,2.78667967,3588.5,3588.4,0.002]
[1754484959049,3.0,3588.4,3587.3,0.4544]
[1754484959235,3.0,3588.4,3587.1,0.04]
[1754484959236,3.0,3588.1,3587.1,0.04]
[1754484959433,0.1392,3587.2,3587.1,0.5144]
[1754484959639,4.67284788,3587.2,3587.1,0.5144]
[1754484959840,7.46053744,3587.2,3587.1,0.04]
[1754484960172,10.92782223,3587.2,3587.1,0.04]
[1754484960475,0.39484788,3587.2,3587.1,0.04]
[1754484960672,4.67284788,3587.2,3587.1,0.5144]
[1754484960876,7.46053744,3587.2,3587.1,0.04]
[1754484961073,7.46076629,3587.2,3587.1,0.04]
[1754484961237,8.57798694,3587.2,3587.1,0.9748]
[1754484961638,0.39507673,3587.2,3587.1,0.9748]
[1754484961837,4.67307673,3587.2,3587.1,0.9748]
[1754484962472,4.53487673,3587.2,3587.1,0.9748]
[1754484962775,4.53487673,3587.2,3587.1,3.76256727]
[1754484962959,0.25587673,3587.2,3587.1,3.76256727]
[1754484963166,4.53487673,3587.2,3587.1,4.43153378]
[1754484963380,0.25587673,3587.2,3587.1,0.9748]
[1754484963538,0.25587673,3587.2,3587.1,0.5004]
[1754484963539,0.39507673,3587.2,3587.1,0.5004]
[1754484963740,4.54587673,3587.2,3587.1,0.5004]
[1754484963975,4.55287673,3587.2,3587.1,3.76256727]
[1754484964147,4.298,3587.4,3587.1,4.31256727]
[1754484964355,6.696,3587.9,3587.1,4.31256727]
[1754484964356,6.696,3587.9,3587.3,3.33761185]
[1754484964563,6.696,3587.9,3587.5,2.78739056]
[1754484964764,4.304,3587.8,3587.6,3.72216167]
[1754484964961,4.304,3587.7,3587.6,2.78736167]
[1754484965164,6.696,3587.9,3587.5,2.78743226]
[1754484965344,7.09122506,3587.8,3587.1,0.04]
[1754484965549,7.09122836,3587.8,3587.2,0.9348]
[1754484965745,2.7871595,3587.9,3587.3,0.9348]
[1754484965952,7.0923153,3587.7,3587.4,0.9348]
[1754484966174,4.305,3587.6,3587.4,0.9348]
[1754484966376,4.305,3587.6,3587.4,0.4604]
[1754484966579,4.305,3587.6,3587.5,0.4604]
[1754484966882,4.305,3587.6,3587.5,0.9348]
[1754484969591,4.303,3587.6,3587.5,0.9348]
[1754484969886,4.303,3587.6,3587.5,0.4604]
[1754484970086,4.303,3587.6,3587.5,0.9348]
[1754484970804,2.78714712,3587.9,3587.5,0.9348]
[1754484970965,2.78714712,3587.9,3587.2,2.78766979]
[1754484971169,4.302,3587.8,3587.3,2.78758841]
[1754484971369,4.302,3587.8,3587.4,3.7223312]
[1754484971608,4.302,3587.8,3587.5,0.9348]
[1754484971982,7.08927864,3587.8,3587.5,0.9348]
[1754484972505,1.44643508,3587.7,3587.1,0.04]
[1754484972709,2.78752566,3587.5,3587.1,0.04]
[1754484972999,4.302,3587.6,3587.1,0.04]
[1754484973000,2.78761629,3587.3,3587.1,0.04]
[1754484973179,4.3,3587.2,3587.1,0.04]
[1754484973383,7.08768956,3587.2,3587.1,0.04]
[1754484973880,8.77952473,3587.2,3587.1,0.04]
[1754484975108,5.99183517,3587.2,3587.1,0.04]
[1754484975293,2.78755564,3587.4,3587.1,0.9748]
[1754484975478,4.302,3587.2,3587.1,0.04]
[1754484976309,4.5581241,3587.2,3587.1,0.04]
[1754484976986,4.5581241,3587.2,3587.1,0.5004]
[1754484977510,0.2561241,3587.2,3587.1,3.76256727]
[1754484977710,4.5561241,3587.2,3587.1,3.76256727]
[1754484977877,4.5561241,3587.2,3587.1,3.90176727]
[1754484978566,4.3,3587.2,3587.1,3.90176727]
[1754484978772,0.1392,3587.6,3587.3,2.78756402]
[1754484979074,4.55612651,3587.5,3587.3,2.78761185]
[1754484979352,0.1392,3587.9,3587.4,2.78753403]
[1754484979506,4.55517021,3587.8,3587.4,0.1392]
[1754484979705,0.25617021,3587.7,3587.4,2.92671709]
[1754484980006,0.25617021,3587.6,3587.4,0.1392]
[1754484980205,0.25617021,3587.6,3587.1,0.04]
[1754484980206,4.299,3587.5,3587.1,0.04]
[1754484980508,4.299,3587.5,3587.3,2.78761184]
[1754484980812,4.299,3587.5,3587.2,0.9348]
[1754484980813,4.299,3587.5,3587.4,0.9348]
[1754484980979,4.55524493,3587.5,3587.4,0.9348]
[1754484981419,4.55428493,3587.5,3587.4,3.72233414]
[1754484981575,1.18801218,3588.3,3587.5,2.7874416]
[1754484981781,0.1392,3588.0,3587.6,0.4692]
[1754484981980,4.5553018,3587.9,3587.5,2.9266416]
[1754484982318,0.2563018,3587.8,3587.7,0.4692]
[1754484983092,1.9522521,3587.8,3587.2,2.78766645]
[1754484983429,0.2563018,3587.7,3587.4,2.78752898]
[1754484983608,4.5563018,3587.6,3587.3,2.78757933]
[1754484983930,4.299,3587.5,3587.4,3.68833414]
[1754484984338,4.299,3587.5,3587.2,3.396077]
[1754484984630,4.299,3587.5,3587.2,3.827677]
[1754484985032,4.299,3587.5,3587.2,3.82767876]
[1754484985221,4.793,3587.5,3587.2,0.1392]
[1754484985398,0.25650428,3587.4,3587.1,2.96691144]
[1754484985594,0.25650428,3587.4,3587.2,2.7876829]
[1754484985925,0.25650428,3587.4,3587.3,2.78761185]
[1754484986126,0.1392,3587.6,3587.5,2.78745644]
[1754484986329,4.55459702,3587.6,3587.4,2.92668782]
[1754484986628,4.298,3587.6,3587.5,0.9008]
[1754484986854,4.298,3587.6,3587.2,2.78765485]
[1754484986855,5.04860126,3587.6,3587.2,2.78765485]
[1754484987127,5.04860126,3587.6,3587.3,2.78760903]
[1754484987128,0.25660126,3587.5,3587.3,2.78760903]
[1754484987327,0.25660126,3587.4,3587.3,2.78760903]
[1754484987530,0.25660126,3587.5,3587.4,2.78753414]
[1754484987895,0.1392,3587.9,3587.5,2.78745644]
[1754484988090,4.5547189,3587.8,3587.6,2.78737534]
[1754484988295,0.2567189,3587.7,3587.6,2.78737534]
[1754484988496,3.97100449,3588.6,3587.3,2.78761185]
[1754484988497,0.1392,3588.2,3587.3,2.78761185]
[1754484988705,4.5557189,3588.1,3587.9,2.78709772]
[1754484988910,0.2567189,3588.0,3587.9,3.25629772]
[1754484989106,0.2567189,3588.0,3587.9,2.78709772]
[1754484989394,0.2567189,3588.0,3587.9,3.25629772]
[1754484989790,0.2567189,3588.0,3587.9,0.4692]
[1754484989997,0.2567189,3588.0,3587.9,2.78714568]
[1754484990191,0.2567189,3588.0,3587.8,2.92639274]
[1754484990435,0.2567189,3587.9,3587.8,2.9264046]
[1754484990633,4.5557189,3587.9,3587.8,3.3580046]
[1754484990834,4.5537189,3587.9,3587.8,3.3580046]
[1754484991145,4.5537189,3587.9,3587.8,0.1392]
[1754484992323,4.5537189,3587.9,3587.7,2.78728948]
[1754484992508,0.2567189,3587.8,3587.7,0.4692]
[1754484992704,0.2567189,3587.8,3587.7,3.25650105]
[1754484993014,0.2567189,3587.8,3587.7,3.68810105]
[1754484993322,4.5527189,3587.8,3587.7,3.68810105]
[1754484994456,4.5527189,3587.8,3587.7,2.78730105]
[1754484994661,4.5527189,3587.8,3587.7,3.25650105]
[1754484995227,4.5527189,3587.8,3587.6,2.92654427]
[1754484995454,0.2567189,3587.7,3587.6,2.78734427]
[1754484995634,0.2567189,3587.7,3587.6,3.21894427]
[1754484995849,4.296,3587.8,3587.7,3.25650105]
[1754484996016,4.55279085,3587.8,3587.7,3.68810105]
[1754484996457,4.55279085,3587.8,3587.7,3.25650105]
[1754484996951,4.55279085,3587.8,3587.6,0.1392]
[1754484997249,4.79,3587.8,3587.6,0.1392]
[1754484997617,4.79,3587.8,3587.5,2.92660994]
[1754484997951,4.79,3587.8,3587.5,0.1392]
[1754484997952,1.20456369,3587.7,3587.5,0.1392]
[1754484998149,0.39596369,3587.6,3587.1,0.1812]
[1754484998353,5.49856369,3587.5,3587.1,0.1812]
[1754484998568,0.75076369,3587.4,3587.1,0.1812]
[1754484998718,0.25676369,3587.3,3587.2,2.78768956]
[1754484998920,0.25676369,3587.3,3587.2,3.21928956]
[1754484999138,4.54976369,3587.3,3587.2,3.21928956]
[1754484999657,4.293,3587.3,3587.2,3.68848956]
[1754484999839,5.49753199,3587.3,3587.1,0.042]
[1754485000158,1.20453199,3587.2,3587.1,0.042]
[1754485001017,0.25673199,3587.2,3587.1,0.042]
[1754485003268,1.20453199,3587.2,3587.1,0.042]
[1754485003615,0.75073199,3587.2,3587.1,0.042]
[1754485003819,0.25673199,3587.2,3587.1,3.042]
[1754485004020,0.25673199,3587.2,3587.1,3.5112]
[1754485004258,0.25673199,3587.2,3587.1,3.73056727]
[1754485004424,4.29,3587.2,3587.1,3.73056727]
[1754485005540,0.494,3587.8,3587.1,0.9428]
[1754485005744,4.54569413,3587.7,3587.2,2.78765887]
[1754485005936,0.25669413,3587.6,3587.3,2.7875864]
[1754485006251,0.25669413,3587.6,3587.1,2.82974009]
[1754485006252,0.25669413,3587.5,3587.1,2.82974009]
[1754485006460,4.54469413,3587.4,3587.1,3.29894009]
[1754485006767,0.25669413,3587.3,3587.1,3.29894009]
[1754485007065,4.288,3587.4,3587.1,3.29894009]
[1754485007273,0.25677657,3587.3,3587.1,3.29894009]
[1754485007566,1.10609679,3587.8,3587.1,3.29894009]
[1754485007567,4.3873518,3587.8,3587.2,3.68848956]
[1754485007741,4.54383478,3587.7,3587.2,3.68848956]
[1754485007941,4.54383478,3587.7,3587.1,0.042]
[1754485007942,3.04427589,3587.6,3587.1,0.042]
[1754485008147,0.25683478,3587.5,3587.2,0.4692]
[1754485008348,4.54283478,3587.4,3587.3,0.4692]
[1754485010075,4.54283478,3587.4,3587.3,0.9008]
[1754485010378,4.54183478,3587.4,3587.3,3.68841185]
[1754485010575,4.54083478,3587.4,3587.3,3.68841185]
[1754485011774,0.25683478,3587.4,3587.3,10.68973133]
[1754485012674,4.284,3587.5,3587.4,2.78753414]
[1754485012973,4.284,3587.5,3587.4,3.71183414]
[1754485013339,4.284,3587.5,3587.4,3.85103414]
[1754485014747,0.001,3587.9,3587.8,2.78722336]
[1754485014937,4.5408592,3587.9,3587.8,2.78722336]
[1754485015137,4.5408592,3587.9,3587.5,2.28829655]
[1754485015339,1.2174592,3587.8,3587.5,2.78740417]
[1754485015585,1.2174592,3587.7,3587.4,2.78751419]
[1754485015737,0.2568592,3587.6,3587.4,2.78751419]
[1754485015938,4.284,3587.5,3587.2,2.787674]
[1754485016248,0.4923,3587.4,3587.3,0.1392]
[1754485016448,0.74911437,3587.4,3587.3,0.1392]
[1754485017364,0.25681437,3587.4,3587.3,0.1392]
[1754485018087,1.21741437,3587.4,3587.3,0.1392]
[1754485018252,1.21741437,3587.4,3587.1,0.042]
[1754485018455,1.21741437,3587.3,3587.2,2.78768956]
[1754485018689,0.25681437,3587.3,3587.2,2.78768956]
[1754485019038,0.25681437,3587.3,3587.1,2.96893887]
[1754485019039,0.25683846,3587.3,3587.1,2.96893887]
[1754485019283,0.25683846,3587.2,3587.1,2.96893887]
[1754485019667,0.25683846,3587.2,3587.1,0.1812]
[1754485019843,0.25683846,3587.2,3587.1,2.96896727]
[1754485020043,0.25683846,3587.2,3587.1,0.1812]
[1754485020238,0.25683846,3587.2,3587.1,2.96896727]
[1754485020466,4.284,3587.2,3587.1,5.19493274]
[1754485020699,0.001,3587.7,3587.4,2.78747829]
[1754485020856,4.53990114,3587.6,3587.5,2.78745644]
[1754485021269,4.53990114,3587.6,3587.4,0.1392]
[1754485021474,0.74920405,3587.5,3587.4,0.1392]
[1754485021797,0.74920405,3587.5,3587.4,2.92673414]
[1754485021984,0.25690405,3587.5,3587.4,2.92673414]
[1754485022979,0.25690405,3587.5,3587.4,0.1392]
[1754485023181,0.25690405,3587.5,3587.4,2.92673414]
[1754485024179,0.25690405,3587.5,3587.4,3.85103414]
[1754485024414,4.283,3587.6,3587.5,2.78745644]
[1754485024580,4.53990873,3587.6,3587.5,2.78745644]
[1754485024766,4.53990873,3587.6,3587.5,3.24635644]
[1754485024968,4.53990873,3587.6,3587.5,2.78745644]
[1754485025268,5.03220873,3587.6,3587.4,2.92666125]
[1754485025505,0.25690873,3587.5,3587.4,2.92673414]
[1754485026225,4.53890873,3587.5,3587.4,3.38563414]
[1754485027309,4.53889154,3587.5,3587.4,2.92673414]
[1754485027483,4.53890089,3587.5,3587.4,2.92673414]
[1754485027887,4.53890089,3587.5,3587.4,0.1392]
[1754485028070,4.53890089,3587.5,3587.4,2.92673414]
[1754485028267,4.282,3587.5,3587.4,2.92673414]
[1754485028470,4.53889567,3587.5,3587.4,2.92673414]
[1754485028918,0.001,3587.7,3587.6,2.78737874]
[1754485029105,4.53990452,3587.7,3587.6,2.78737874]
[1754485029321,4.53990452,3587.7,3587.6,2.92657874]
[1754485029486,4.53990452,3587.7,3587.6,3.38547874]
[1754485029869,4.53990452,3587.7,3587.6,2.92657874]
[1754485030182,4.53989849,3587.7,3587.6,2.92657874]
[1754485030504,4.53989849,3587.7,3587.6,3.38547874]
[1754485030683,4.53989849,3587.7,3587.6,3.85087874]
[1754485032891,4.283,3587.7,3587.6,3.85087874]
[1754485033092,4.53995284,3587.7,3587.6,3.85087874]
[1754485034625,0.25795284,3587.7,3587.6,3.85087874]
[1754485034829,4.53995284,3587.7,3587.6,3.85087874]
[1754485035122,4.53995284,3587.7,3587.6,3.38547874]
[1754485035424,0.25795284,3587.7,3587.6,3.85087874]
[1754485035717,4.283,3587.7,3587.6,3.85087874]
[1754485036220,4.283,3587.7,3587.6,3.24627874]
[1754485036221,0.001,3587.7,3587.6,3.24627874]
[1754485036418,4.283,3587.7,3587.6,4.45426003]
[1754485036793,4.283,3587.7,3587.6,3.38547874]
[1754485036997,4.283,3587.7,3587.6,2.92657874]
[1754485037178,4.283,3587.7,3587.6,0.1392]
[1754485037386,5.50060528,3587.7,3587.6,0.1392]
[1754485037692,5.50060528,3587.7,3587.5,0.1392]
[1754485037900,4.283,3587.7,3587.5,0.1392]
[1754485038080,0.9606,3587.6,3587.5,0.1392]
[1754485038407,1.21760293,3587.6,3587.5,2.92665644]
[1754485038714,1.21760293,3587.6,3587.5,0.1392]
[1754485038882,0.001,3587.7,3587.5,0.1392]
[1754485039083,4.283,3587.7,3587.6,3.71361008]
[1754485039314,4.283,3587.7,3587.6,2.78737874]
[1754485039805,4.283,3587.7,3587.6,3.71167874]
[1754485039806,0.001,3587.7,3587.6,3.71167874]
[1754485040213,0.001,3587.7,3587.6,2.78737874]
[1754485040671,1.2187261,3587.7,3587.5,2.92659006]
[1754485040872,1.2187261,3587.7,3587.6,2.78737874]
[1754485040873,0.4693,3587.7,3587.6,2.78737874]
[1754485041210,0.25812528,3587.7,3587.6,2.78737874]
[1754485041609,0.001,3587.7,3587.6,2.78737874]
[1754485041791,0.25813695,3587.7,3587.6,2.78737874]
[1754485041987,0.2581429,3587.7,3587.6,3.27617874]
[1754485042205,4.282,3587.7,3587.6,3.84687874]
[1754485042513,5.48986399,3587.7,3587.6,0.1392]
[1754485043210,5.48986399,3587.7,3587.6,2.92657874]
[1754485043414,5.02426399,3587.7,3587.6,2.92657874]
[1754485043708,4.53916399,3587.7,3587.6,3.41537874]
[1754485044113,4.53916399,3587.7,3587.6,2.92657874]
[1754485044277,0.25816399,3587.7,3587.6,3.41537874]
[1754485044481,4.53916399,3587.7,3587.6,3.41537874]
[1754485044779,4.53916399,3587.7,3587.6,3.84687874]
[1754485044997,4.282,3587.7,3587.6,3.84687874]
[1754485045702,4.282,3587.7,3587.6,5.14387602]
[1754485045889,4.282,3587.7,3587.6,5.69387602]
[1754485046615,0.001,3587.7,3587.6,5.69387602]
[1754485047923,0.001,3587.7,3587.6,5.26237602]
[1754485049602,0.001,3587.7,3587.6,4.77357602]
[1754485050728,0.001,3587.7,3587.6,5.26237602]
[1754485051503,0.001,3587.7,3587.6,4.77357602]
[1754485051701,0.001,3587.7,3587.6,3.47657874]
[1754485052139,0.001,3587.7,3587.6,2.92657874]
[1754485052434,0.9517,3587.7,3587.6,2.92657874]
[1754485052600,0.4861,3587.7,3587.6,2.92657874]
[1754485053033,0.001,3587.7,3587.6,2.92657874]
[1754485056638,0.001,3587.7,3587.6,3.41537874]
[1754485058140,0.001,3587.7,3587.6,4.39687874]
[1754485059465,0.001,3587.7,3587.6,5.11531716]
[1754485061264,0.001,3587.7,3587.6,4.68381716]
[1754485061941,0.001,3587.7,3587.6,5.11531716]
[1754485062143,0.001,3587.7,3587.6,4.39687874]
[1754485062452,0.001,3587.7,3587.6,3.96537874]
[1754485063051,0.001,3587.7,3587.6,4.39687874]
[1754485064033,0.001,3587.7,3587.6,3.96537874]
[1754485064962,0.001,3587.7,3587.6,3.47657874]
[1754485066830,0.4861,3587.7,3587.6,3.47657874]
[1754485067875,0.001,3587.7,3587.6,3.47657874]
[1754485068373,0.001,3587.7,3587.6,3.96537874]
[1754485068971,0.001,3587.7,3587.6,4.39687874]
[1754485069503,0.001,3587.7,3587.6,3.96537874]
[1754485072366,0.25888328,3587.7,3587.6,3.47657874]
[1754485073140,0.001,3587.7,3587.6,3.47657874]
[1754485073544,0.001,3587.7,3587.6,4.41137874]
[1754485073739,0.001,3587.7,3587.6,5.13146716]
[1754485074549,0.001,3587.7,3587.6,3.47657874]
[1754485076078,0.001,3587.7,3587.6,3.93907874]
[1754485076384,0.001,3587.7,3587.6,4.41137874]
[1754485076582,0.001,3587.7,3587.6,3.93907874]
[1754485077081,0.001,3587.7,3587.6,4.41137874]
[1754485077283,0.001,3587.7,3587.6,3.47657874]
[1754485078549,0.4911,3587.7,3587.6,3.47657874]
[1754485079278,0.001,3587.7,3587.6,3.47657874]
[1754485085410,0.001,3587.7,3587.5,0.002]
[1754485085411,1.7732038,3587.7,3587.5,0.002]
[1754485085575,5.5007138,3587.6,3587.5,0.1412]
[1754485088823,5.5007138,3587.6,3587.5,0.002]
[1754485089020,6.40960874,3587.6,3587.5,0.002]
[1754485090425,12.19698748,3587.6,3587.5,0.002]
[1754485090803,9.40960874,3587.6,3587.5,0.002]
[1754485090987,12.19698748,3587.6,3587.5,0.002]
[1754485093528,12.33618748,3587.6,3587.5,0.002]
[1754485096459,12.3349115,3587.6,3587.5,0.002]
[1754485102425,12.33473879,3587.6,3587.5,0.002]
[1754485104448,11.37033879,3587.6,3587.5,0.002]
[1754485104750,7.09233879,3587.6,3587.5,0.002]
[1754485105110,11.37033879,3587.6,3587.5,0.002]
[1754485105310,7.09233879,3587.6,3587.5,0.002]
[1754485105536,11.37033879,3587.6,3587.5,0.002]
[1754485105920,12.31853879,3587.6,3587.5,0.002]
[1754485106338,12.76583879,3587.6,3587.5,0.002]
[1754485108352,12.76578301,3587.6,3587.5,0.002]
[1754485113837,12.76578301,3587.6,3587.5,1e-08]
[1754485114038,42.76578301,3587.6,3587.5,1e-08]
[1754485115295,42.76578301,3587.6,3587.1,0.042]
[1754485115296,2.78768956,3587.2,3587.1,0.042]
[1754485115456,11.31822837,3587.2,3587.1,0.042]
[1754485115660,12.26642837,3587.2,3587.1,0.042]
[1754485115851,12.73122837,3587.2,3587.1,0.042]
[1754485116403,11.84849267,3587.2,3587.1,0.042]
[1754485116690,11.64382837,3587.2,3587.1,0.042]
[1754485116862,12.59202837,3587.2,3587.1,0.042]
[1754485117187,12.5924794,3587.2,3587.1,0.042]
[1754485120565,12.79712279,3587.2,3587.1,0.042]
[1754485121787,11.84892279,3587.2,3587.1,0.042]
[1754485122405,12.79712279,3587.2,3587.1,0.042]
[1754485123178,2.78800044,3586.8,3586.7,0.002]
[1754485123393,2.7884669,3586.2,3585.7,3.58764905]
[1754485123596,33.0,3586.1,3584.1,0.04]
[1754485123924,0.25726036,3586.0,3585.2,0.9121]
[1754485124127,4.55426036,3585.9,3585.4,2.78903228]
[1754485124269,4.55426036,3585.8,3585.7,2.78885573]
[1754485124467,0.83825,3586.1,3586.0,2.78862242]
[1754485124782,0.25715209,3587.1,3587.0,2.78784499]
[1754485124987,0.25715209,3587.1,3586.8,2.78792705]
[1754485125186,0.2495,3587.4,3587.0,0.5733]
[1754485125367,4.55819275,3587.3,3586.2,3.0]
[1754485125709,6.33558863,3587.0,3585.1,0.05958949]
[1754485125923,3.0,3586.5,3585.3,0.837931]
[1754485126207,2.78908018,3585.5,3585.1,0.05958949]
[1754485126503,2.78924467,3585.2,3585.1,0.05958949]
[1754485126723,7.49946072,3585.2,3585.1,0.05958949]
[1754485126882,8.44766072,3585.2,3585.1,0.05958949]
[1754485127087,9.57133761,3585.2,3585.1,0.05958949]
[1754485127301,9.09023761,3585.2,3585.1,0.05958949]
[1754485127695,8.62313761,3585.2,3585.1,0.05958949]
[1754485127898,4.71021605,3585.2,3585.1,0.05958949]
[1754485128494,7.49946072,3585.2,3585.1,0.05958949]
[1754485128697,8.44766072,3585.2,3585.1,0.05958949]
[1754485128921,11.44766072,3585.2,3585.1,0.05958949]
[1754485129138,12.87133773,3585.2,3585.1,0.05958949]
[1754485129289,25.90692636,3585.2,3585.1,0.05958949]
[1754485129487,19.57133773,3585.2,3585.1,0.05958949]
[1754485130104,19.58533773,3585.2,3585.1,0.05958949]
[1754485131222,19.10423773,3585.2,3585.1,0.05958949]
[1754485131424,19.56013773,3585.2,3585.1,0.05958949]
[1754485132331,19.10103773,3585.2,3585.1,0.05958949]
[1754485132527,18.96183773,3585.2,3585.1,0.05958949]
[1754485132726,19.55693773,3585.2,3585.1,0.05958949]
[1754485133099,14.30913773,3585.2,3585.1,0.05958949]
[1754485133305,14.42321605,3585.2,3585.1,0.53338949]
[1754485133523,14.42221605,3585.2,3585.1,0.53338949]
[1754485133821,14.42221605,3585.2,3585.1,0.05958949]
[1754485134229,14.42221605,3585.2,3585.1,0.53338949]
[1754485134741,11.42221605,3585.2,3585.1,0.53338949]
[1754485134936,11.42121605,3585.2,3585.1,0.53338949]
[1754485135439,6.95701605,3585.2,3585.1,3.32271196]
[1754485135738,11.025,3585.2,3585.1,3.32271196]
[1754485135939,0.1392,3585.3,3585.1,3.32271196]
[1754485135940,0.93355886,3586.4,3585.1,1.26702756]
[1754485136114,0.1392,3585.8,3585.7,2.78885573]
[1754485136304,4.325,3585.8,3585.7,3.26265573]
[1754485136503,4.325,3585.8,3585.7,3.37115573]
[1754485136743,4.325,3585.8,3585.7,0.5823]